bitfinex-derivatives/quotes_BTCF0:USTF0_20250119
["timestamp","ask_amount","ask_price","bid_price","bid_amount"]
[1737302002754,0.408538,104890.0,104880.0,0.047742]
[1737302002955,0.408538,104890.0,104880.0,0.22489228]
[1737302003755,0.408538,104890.0,104880.0,0.22489073]
[1737302004458,0.46095206,104890.0,104880.0,0.22503026]
[1737302004659,0.46095206,104890.0,104880.0,0.22801613]
[1737302006057,0.46095206,104890.0,104880.0,0.1801346]
[1737302006351,0.46095206,104890.0,104880.0,0.18027413]
[1737302006556,0.46095206,104890.0,104880.0,0.0137346]
[1737302006755,0.54245206,104890.0,104880.0,0.0137346]
[1737302006953,0.62125206,104890.0,104880.0,0.0137346]
[1737302007861,0.73514942,104890.0,104880.0,0.0137346]
[1737302010456,0.76381796,104890.0,104880.0,0.0137346]
[1737302012861,0.93474159,104890.0,104880.0,0.0137346]
[1737302013668,0.93474159,104890.0,104880.0,0.01373718]
[1737302013859,0.88232753,104890.0,104880.0,0.01373718]
[1737302014053,0.79217569,104890.0,104880.0,0.01373718]
[1737302014858,0.79217569,104890.0,104880.0,0.0138773]
[1737302015358,0.79217569,104890.0,104880.0,0.01373718]
[1737302015561,0.047742,104880.0,104870.0,0.00014012]
[1737302015763,0.54305606,104880.0,104870.0,0.00014012]
[1737302016156,0.54305606,104880.0,104860.0,0.0848]
[1737302016358,0.54305606,104880.0,104870.0,0.00014021]
[1737302016558,0.90385606,104880.0,104870.0,0.00014021]
[1737302016852,1.04678661,104880.0,104870.0,0.00014021]
[1737302017158,1.09920067,104880.0,104860.0,2.1e-07]
[1737302017364,0.62646106,104870.0,104860.0,2.1e-07]
[1737302017674,0.047751,104860.0,104850.0,0.36552036]
[1737302017963,0.46096506,104860.0,104850.0,0.28322036]
[1737302018163,0.047756,104850.0,104840.0,0.36232036]
[1737302018354,0.408556,104850.0,104840.0,0.36232036]
[1737302019768,0.408556,104850.0,104840.0,0.0791]
[1737302020368,0.408556,104850.0,104840.0,0.17927406]
[1737302020567,0.4751284,104860.0,104840.0,0.17927406]
[1737302020870,0.4751284,104860.0,104850.0,0.26607006]
[1737302020871,0.5228804,104860.0,104850.0,0.26607006]
[1737302021071,0.1620804,104860.0,104850.0,0.26607006]
[1737302022165,0.047752,104860.0,104850.0,0.26607006]
[1737302023569,0.047752,104860.0,104850.0,0.2720428]
[1737302025367,0.047752,104860.0,104850.0,0.28091926]
[1737302025671,0.047752,104860.0,104850.0,0.28569741]
[1737302025869,0.408552,104860.0,104850.0,0.28569741]
[1737302026875,0.047752,104860.0,104850.0,0.28569741]
[1737302027475,0.4751284,104870.0,104850.0,0.28569741]
[1737302027476,0.5228774,104870.0,104860.0,0.047751]
[1737302027672,0.5228774,104870.0,104860.0,0.19490158]
[1737302027973,0.4751284,104870.0,104860.0,0.19490158]
[1737302028167,0.14293055,104880.0,104860.0,0.55570158]
[1737302028367,0.14293055,104880.0,104870.0,0.26706106]
[1737302028573,0.14293055,104880.0,104870.0,0.58918352]
[1737302028574,0.19067255,104880.0,104870.0,0.58918352]
[1737302028780,0.55147255,104880.0,104870.0,0.22838352]
[1737302029188,0.408542,104880.0,104870.0,0.214647]
[1737302029580,0.46095606,104880.0,104870.0,0.131147]
[1737302029781,0.408542,104880.0,104870.0,0.131147]
[1737302029987,0.408542,104880.0,104870.0,0.0834]
[1737302030184,0.46095606,104880.0,104870.0,0.0834]
[1737302030487,0.047747,104870.0,104860.0,0.58430936]
[1737302030687,0.63236106,104870.0,104860.0,0.58430936]
[1737302030889,0.63236106,104870.0,104860.0,0.28322036]
[1737302032087,0.63236106,104870.0,104860.0,0.29709919]
[1737302032291,0.63236106,104870.0,104860.0,0.0138789]
[1737302032592,0.63236106,104870.0,104860.0,0.01387891]
[1737302033882,0.63236106,104870.0,104860.0,0.01387894]
[1737302034094,0.77529161,104870.0,104860.0,0.01387894]
[1737302034496,0.77529161,104870.0,104860.0,0.01373842]
[1737302035581,0.78440101,104870.0,104860.0,0.01373842]
[1737302036088,0.047751,104860.0,104850.0,0.00014052]
[1737302036291,0.46096506,104860.0,104850.0,0.00014052]
[1737302039490,0.46096506,104860.0,104850.0,0.00038185]
[1737302039695,0.46096506,104860.0,104850.0,0.00025173]
[1737302042006,0.408551,104860.0,104850.0,0.00025173]
[1737302042300,0.36160118,104870.0,104850.0,0.46587985]
[1737302042602,0.36160118,104870.0,104860.0,0.10016506]
[1737302042802,0.36160118,104870.0,104860.0,0.047751]
[1737302043103,0.36160118,104870.0,104860.0,0.408551]
[1737302043303,0.36160118,104870.0,104860.0,0.3608]
[1737302043697,0.047751,104860.0,104850.0,0.46122079]
[1737302043898,0.02624753,104860.0,104850.0,0.74444115]
[1737302044202,0.02624753,104860.0,104850.0,0.75041433]
[1737302044702,0.02624753,104860.0,104850.0,0.38961433]
[1737302044896,0.02624753,104860.0,104850.0,0.39875062]
[1737302045299,0.02624753,104860.0,104850.0,0.9369388]
[1737302045802,0.02624753,104860.0,104850.0,1.2977388]
[1737302046101,0.02624753,104860.0,104850.0,1.30251716]
[1737302047098,0.02624753,104860.0,104850.0,0.83241181]
[1737302047398,0.07866159,104860.0,104850.0,0.83241181]
[1737302047598,0.07866159,104860.0,104850.0,0.83241215]
[1737302047599,0.02624753,104860.0,104850.0,0.83241215]
[1737302047799,0.07866159,104860.0,104850.0,0.83241215]
[1737302047999,0.02624753,104860.0,104850.0,0.83539879]
[1737302048201,0.02624753,104860.0,104850.0,0.24203156]
[1737302048503,0.43946159,104860.0,104850.0,0.24203156]
[1737302048900,0.43946159,104860.0,104850.0,0.24203252]
[1737302049099,0.38704753,104860.0,104850.0,0.24203252]
[1737302049298,0.38704753,104860.0,104850.0,0.01399121]
[1737302049898,0.43946159,104860.0,104850.0,0.01412125]
[1737302050898,0.43946159,104860.0,104840.0,0.22804131]
[1737302051104,0.70367006,104850.0,104840.0,0.23580753]
[1737302051298,0.70367006,104850.0,104840.0,0.2359377]
[1737302052695,0.70367006,104850.0,104840.0,0.00789639]
[1737302052896,0.04776,104840.0,104830.0,0.22804131]
[1737302053104,0.40856,104840.0,104830.0,0.27580631]
[1737302053301,0.04776,104840.0,104830.0,0.68902037]
[1737302053499,0.04776,104840.0,104830.0,0.32822037]
[1737302053703,0.04776,104840.0,104830.0,0.41052037]
[1737302053900,0.04776,104840.0,104830.0,0.77132037]
[1737302054094,0.04776,104840.0,104830.0,0.41052037]
[1737302054300,0.04776,104840.0,104830.0,0.35810631]
[1737302054498,0.40856,104840.0,104830.0,0.35810631]
[1737302054708,0.46097406,104840.0,104830.0,0.22804131]
[1737302056005,0.46097406,104840.0,104820.0,0.28322036]
[1737302056006,0.51338812,104840.0,104820.0,0.28322036]
[1737302056309,0.04777,104820.0,104810.0,0.33986443]
[1737302056603,0.46098406,104820.0,104810.0,0.33986443]
[1737302057107,0.46098406,104820.0,104800.0,0.10008588]
[1737302057108,0.047774,104810.0,104800.0,0.10008588]
[1737302058005,0.047774,104810.0,104800.0,0.46088588]
[1737302059107,0.047774,104810.0,104800.0,0.10606174]
[1737302060503,0.047774,104810.0,104800.0,0.15384074]
[1737302060911,0.047774,104810.0,104800.0,0.15862148]
[1737302061208,0.047774,104810.0,104800.0,0.21103554]
[1737302061802,0.047774,104810.0,104800.0,0.15862148]
[1737302063004,0.047774,104810.0,104800.0,0.16160931]
[1737302063410,0.047774,104810.0,104800.0,0.17051514]
[1737302067115,0.047774,104810.0,104800.0,0.33531514]
[1737302069422,0.047774,104810.0,104800.0,0.69611514]
[1737302069726,0.408572,104820.0,104810.0,0.047774]
[1737302069922,0.408572,104820.0,104810.0,0.14094826]
[1737302070118,0.408572,104820.0,104810.0,0.14081843]
[1737302070814,0.408572,104820.0,104810.0,0.127074]
[1737302071015,0.408572,104820.0,104810.0,0.14081802]
[1737302071723,0.46098606,104820.0,104810.0,0.09304402]
[1737302071908,0.54198606,104820.0,104810.0,0.09304402]
[1737302072514,0.54198606,104820.0,104810.0,0.09317386]
[1737302073623,0.489572,104820.0,104810.0,0.09317386]
[1737302074423,0.489572,104820.0,104810.0,0.09304402]
[1737302074923,0.489572,104820.0,104810.0,0.14081839]
[1737302075525,0.408572,104820.0,104810.0,0.14081839]
[1737302076228,0.047772,104820.0,104810.0,0.14081839]
[1737302076824,0.10018606,104820.0,104810.0,0.09304439]
[1737302077023,0.18328606,104820.0,104810.0,0.09317433]
[1737302077429,0.54408606,104820.0,104810.0,0.09317433]
[1737302077816,0.54408606,104820.0,104810.0,0.01387433]
[1737302078019,0.62848606,104820.0,104810.0,0.01387433]
[1737302078421,0.68090012,104820.0,104810.0,0.01387433]
[1737302078634,0.047774,104810.0,104800.0,0.1]
[1737302078824,0.46098806,104810.0,104800.0,0.1]
[1737302079329,0.047783,104790.0,104780.0,0.33986443]
[1737302079531,0.43947952,104790.0,104780.0,0.33986443]
[1737302079727,0.60517952,104790.0,104780.0,0.33986443]
[1737302080124,0.047788,104780.0,104770.0,0.290691]
[1737302080732,0.10020206,104780.0,104770.0,0.21835703]
[1737302082135,0.46100206,104780.0,104770.0,0.21835703]
[1737302082639,0.46100206,104780.0,104770.0,0.227603]
[1737302082828,0.46100206,104780.0,104770.0,0.147503]
[1737302083139,0.047792,104770.0,104760.0,0.38765943]
[1737302083337,0.047792,104770.0,104760.0,0.47862609]
[1737302083528,0.047792,104770.0,104760.0,0.46965943]
[1737302084035,0.10020606,104770.0,104760.0,0.34891874]
[1737302084333,0.047792,104770.0,104760.0,0.10021106]
[1737302084638,0.047792,104770.0,104760.0,0.18041106]
[1737302086532,0.047792,104770.0,104760.0,0.18638932]
[1737302086933,0.047792,104770.0,104760.0,0.13397526]
[1737302087239,0.047792,104770.0,104760.0,0.1339753]
[1737302088640,0.047792,104770.0,104760.0,0.1387579]
[1737302089238,0.047792,104770.0,104760.0,0.13875785]
[1737302090040,0.408592,104770.0,104760.0,0.13875785]
[1737302090340,0.047792,104770.0,104760.0,0.13875785]
[1737302090540,0.047792,104770.0,104760.0,0.14174701]
[1737302091133,0.047792,104770.0,104760.0,0.127997]
[1737302091334,0.047792,104770.0,104760.0,0.14174715]
[1737302093340,0.047792,104770.0,104760.0,0.14174697]
[1737302094927,0.02627062,104770.0,104760.0,0.14174697]
[1737302095538,0.02627062,104770.0,104760.0,0.01374997]
[1737302095539,0.43948468,104770.0,104760.0,0.01374997]
[1737302095737,0.68378468,104770.0,104760.0,0.01374997]
[1737302095939,0.047797,104760.0,104750.0,0.05671797]
[1737302096134,0.46101106,104760.0,104750.0,0.07046836]
[1737302096534,0.46101106,104760.0,104750.0,0.01375039]
[1737302096943,0.46101106,104760.0,104750.0,0.01388019]
[1737302097141,0.408597,104760.0,104750.0,0.06629425]
[1737302097442,0.047797,104760.0,104750.0,0.11396708]
[1737302097948,0.575195,104770.0,104760.0,0.047797]
[1737302098239,0.575195,104770.0,104760.0,0.06154902]
[1737302098438,0.74176161,104770.0,104760.0,0.06167882]
[1737302098638,0.32854755,104770.0,104760.0,0.06167882]
[1737302099037,0.11415255,104770.0,104760.0,0.47489288]
[1737302099240,0.52274155,104780.0,104770.0,0.047792]
[1737302099445,0.57515561,104780.0,104770.0,0.06154402]
[1737302100136,0.57515561,104780.0,104770.0,0.01388182]
[1737302100443,0.46100306,104780.0,104770.0,0.01375202]
[1737302100643,0.54160306,104780.0,104770.0,0.01388182]
[1737302100941,0.54160306,104780.0,104770.0,0.01375202]
[1737302101242,0.047797,104760.0,104750.0,0.0479309]
[1737302101434,0.408597,104760.0,104750.0,0.0479309]
[1737302101843,0.54091106,104760.0,104750.0,0.0001299]
[1737302102031,0.54091106,104760.0,104740.0,0.13438433]
[1737302102238,0.047801,104750.0,104740.0,0.13425443]
[1737302102434,0.047801,104750.0,104740.0,0.13438401]
[1737302102634,0.047801,104750.0,104740.0,0.13425443]
[1737302103034,0.047801,104750.0,104740.0,0.18666849]
[1737302103435,0.047801,104750.0,104740.0,0.13425443]
[1737302104939,0.047801,104750.0,104740.0,0.30518033]
[1737302106746,0.408601,104750.0,104740.0,0.30518033]
[1737302109143,0.408601,104750.0,104740.0,0.31115969]
[1737302109348,0.408601,104750.0,104740.0,0.14023379]
[1737302110245,0.38707511,104750.0,104740.0,0.14023379]
[1737302110749,0.38707511,104750.0,104740.0,0.14920291]
[1737302110943,0.38707511,104750.0,104740.0,0.14023379]
[1737302111150,0.38707511,104750.0,104740.0,0.14501733]
[1737302112338,0.38707511,104750.0,104740.0,0.31649154]
[1737302112534,0.02627511,104750.0,104740.0,0.31649154]
[1737302113148,0.02627511,104750.0,104740.0,0.31948121]
[1737302113741,0.02627511,104750.0,104740.0,0.148007]
[1737302114048,0.02627511,104750.0,104740.0,0.20042106]
[1737302114543,0.8243845,104760.0,104750.0,0.047801]
[1737302114745,0.4635845,104760.0,104750.0,0.06155357]
[1737302115348,0.51599856,104760.0,104750.0,0.06155357]
[1737302116342,0.37289495,104760.0,104750.0,0.2330366]
[1737302116542,0.73369495,104760.0,104750.0,0.2330366]
[1737302116739,0.37289495,104760.0,104750.0,0.2330366]
[1737302116945,0.81269495,104760.0,104750.0,0.1852356]
[1737302117450,0.81269495,104760.0,104750.0,0.41390354]
[1737302117948,0.81269495,104760.0,104750.0,0.41390427]
[1737302118846,0.95579856,104760.0,104750.0,0.01375277]
[1737302119349,0.95579856,104760.0,104750.0,0.01388312]
[1737302119852,0.84131567,104760.0,104750.0,0.18536615]
[1737302121548,0.84131567,104760.0,104750.0,0.18536631]
[1737302122543,0.48051567,104760.0,104750.0,0.18523592]
[1737302122747,0.48051567,104760.0,104750.0,0.18536665]
[1737302123553,0.48051567,104760.0,104750.0,0.18523519]
[1737302123943,0.48051567,104760.0,104750.0,0.18536572]
[1737302124152,0.84131567,104760.0,104750.0,0.18536572]
[1737302124342,0.84131567,104760.0,104750.0,0.41403419]
[1737302125241,0.84131567,104760.0,104750.0,0.41390366]
[1737302125453,0.84131567,104760.0,104750.0,0.18523519]
[1737302125652,0.48051567,104760.0,104750.0,0.18523539]
[1737302125950,0.84131567,104760.0,104750.0,0.18523539]
[1737302126352,0.84131567,104760.0,104750.0,0.18523548]
[1737302126353,0.48051567,104760.0,104750.0,0.18523548]
[1737302127153,0.84131567,104760.0,104750.0,0.18536636]
[1737302127854,1.01304001,104760.0,104750.0,0.18536641]
[1737302129748,1.01304001,104760.0,104750.0,0.18536644]
[1737302131257,0.8699364,104760.0,104750.0,0.41403491]
[1737302133351,0.5091364,104760.0,104750.0,0.41403491]
[1737302133753,0.5091364,104760.0,104750.0,0.4001515]
[1737302133953,0.5091364,104760.0,104750.0,0.41403463]
[1737302134156,0.8699364,104760.0,104750.0,0.41403463]
[1737302134458,1.01335936,104760.0,104750.0,0.24255174]
[1737302136761,0.65255936,104760.0,104750.0,0.24255174]
[1737302136962,1.01335936,104760.0,104750.0,0.24255174]
[1737302137149,0.3629453,104760.0,104750.0,0.24255174]
[1737302137355,0.28157723,104780.0,104760.0,0.047797]
[1737302137555,0.20177723,104780.0,104770.0,0.46100606]
[1737302137754,0.20177723,104780.0,104770.0,0.47475851]
[1737302138651,0.25951838,104780.0,104770.0,1.06820584]
[1737302139952,0.00143217,104780.0,104770.0,1.06820133]
[1737302140266,0.04922017,104780.0,104770.0,1.06820133]
[1737302140765,0.04922017,104780.0,104770.0,1.09528727]
[1737302141260,0.04922017,104780.0,104770.0,1.09541766]
[1737302141455,0.04922017,104780.0,104770.0,1.09528727]
[1737302143068,0.04922017,104780.0,104770.0,1.10440298]
[1737302143559,0.04922017,104780.0,104770.0,1.1045333]
[1737302144161,0.04922017,104780.0,104770.0,1.02510305]
[1737302144977,0.047788,104780.0,104770.0,1.07751711]
[1737302145268,0.408586,104790.0,104770.0,1.07751711]
[1737302145571,0.047788,104780.0,104770.0,1.07751711]
[1737302145868,0.047788,104780.0,104770.0,1.07738687]
[1737302146071,0.047788,104780.0,104770.0,1.07738684]
[1737302146670,0.047788,104780.0,104770.0,0.79161891]
[1737302147064,0.408585,104790.0,104780.0,0.047788]
[1737302147262,0.408585,104790.0,104780.0,0.14196612]
[1737302147961,0.047785,104790.0,104780.0,0.14196612]
[1737302148363,0.047785,104790.0,104780.0,0.39698495]
[1737302148971,0.047785,104790.0,104780.0,0.39685478]
[1737302149858,0.047785,104790.0,104780.0,0.39698495]
[1737302150063,0.047785,104790.0,104780.0,0.39698472]
[1737302150675,0.047785,104790.0,104780.0,0.75765453]
[1737302150882,0.24961173,104810.0,104800.0,0.047779]
[1737302151066,0.24961173,104810.0,104800.0,0.0615267]
[1737302151565,0.24961173,104810.0,104800.0,0.4223267]
[1737302151860,0.24961173,104810.0,104800.0,0.0615267]
[1737302152066,0.30202579,104810.0,104800.0,0.0615267]
[1737302152372,0.30202579,104810.0,104800.0,0.061524]
[1737302152570,0.30202579,104810.0,104800.0,0.422324]
[1737302152770,0.18732081,104810.0,104800.0,0.422324]
[1737302152967,0.13490675,104810.0,104800.0,0.061524]
[1737302153370,0.18732081,104810.0,104800.0,0.422324]
[1737302153576,0.18732081,104810.0,104800.0,0.061524]
[1737302155061,0.00143175,104810.0,104800.0,0.11393806]
[1737302155261,0.00143175,104810.0,104800.0,0.55716844]
[1737302155569,0.12831268,104820.0,104810.0,0.047774]
[1737302155771,0.12831268,104820.0,104810.0,0.506019]
[1737302156473,0.25527723,104830.0,104820.0,0.047769]
[1737302156673,0.19390498,104830.0,104820.0,0.061514]
[1737302156876,0.0792,104830.0,104820.0,0.061514]
[1737302157774,0.0792,104830.0,104820.0,0.145914]
[1737302158171,0.0792,104830.0,104820.0,0.14591136]
[1737302158673,0.0792,104830.0,104820.0,0.132169]
[1737302158978,0.126965,104830.0,104820.0,0.14591136]
[1737302159169,0.17937906,104830.0,104820.0,0.14591136]
[1737302159472,0.126965,104830.0,104820.0,0.14591136]
[1737302160872,0.45209321,104840.0,104820.0,0.09814236]
[1737302161079,0.55226927,104840.0,104830.0,0.047765]
[1737302161273,0.55226927,104840.0,104830.0,0.06150736]
[1737302161872,0.55226927,104840.0,104830.0,0.01374236]
[1737302162068,0.63636927,104840.0,104830.0,0.01374236]
[1737302164377,0.63636927,104840.0,104830.0,0.01387252]
[1737302164581,0.58395521,104840.0,104830.0,0.01387252]
[1737302164883,0.63636927,104840.0,104830.0,0.01374236]
[1737302165089,0.63636927,104840.0,104830.0,0.01387252]
[1737302165279,0.13905521,104840.0,104830.0,0.06628658]
[1737302165478,0.129862,104840.0,104830.0,0.06163726]
[1737302165672,0.129862,104840.0,104830.0,0.11405132]
[1737302165882,0.129862,104840.0,104830.0,0.06163726]
[1737302166078,0.047762,104840.0,104830.0,0.42230713]
[1737302166272,0.047762,104840.0,104830.0,0.14090713]
[1737302167078,0.047762,104840.0,104830.0,0.50170713]
[1737302167484,0.047762,104840.0,104830.0,0.14090713]
[1737302167781,0.047762,104840.0,104830.0,0.50170563]
[1737302168479,0.047762,104840.0,104830.0,0.14090563]
[1737302168680,0.46097606,104840.0,104830.0,0.01374063]
[1737302168982,0.62107606,104840.0,104830.0,0.01374063]
[1737302169180,0.62107606,104840.0,104830.0,0.01387024]
[1737302171395,0.63015368,104840.0,104830.0,0.01387024]
[1737302171580,0.26935368,104840.0,104830.0,0.01387024]
[1737302171782,0.63015368,104840.0,104830.0,0.01387024]
[1737302172088,0.04776,104840.0,104830.0,0.4224358]
[1737302172394,0.43946507,104840.0,104830.0,0.01374063]
[1737302172585,0.60436507,104840.0,104830.0,0.01374063]
[1737302173376,0.60436507,104840.0,104830.0,0.01387041]
[1737302173591,0.60436507,104840.0,104830.0,0.01387032]
[1737302174290,0.60436507,104840.0,104830.0,0.01374063]
[1737302174791,0.70058621,104850.0,104830.0,0.01387043]
[1737302174987,0.04776,104840.0,104830.0,0.06163443]
[1737302175181,0.46097406,104840.0,104830.0,0.01374063]
[1737302175485,0.10017406,104840.0,104830.0,0.01374063]
[1737302176090,0.10017406,104840.0,104830.0,0.18485946]
[1737302177490,0.10017406,104840.0,104830.0,0.18486068]
[1737302178285,0.68656098,104850.0,104840.0,0.04776]
[1737302178286,0.52326298,104850.0,104840.0,0.04776]
[1737302178479,0.16246298,104850.0,104840.0,0.06150185]
[1737302178889,0.21487704,104850.0,104840.0,0.06150185]
[1737302179195,0.16246298,104850.0,104840.0,0.06150185]
[1737302179386,0.16246298,104850.0,104840.0,0.26717406]
[1737302179585,0.16246298,104850.0,104840.0,0.36887475]
[1737302179891,0.047758,104850.0,104840.0,0.48757952]
[1737302180097,0.52469046,104860.0,104850.0,0.047756]
[1737302180289,0.52469046,104860.0,104850.0,0.06149588]
[1737302180989,0.52469046,104860.0,104850.0,0.47470994]
[1737302180990,0.16245898,104860.0,104850.0,0.47470994]
[1737302181292,0.16245898,104860.0,104850.0,0.65478888]
[1737302181492,0.16245898,104860.0,104850.0,0.6547866]
[1737302182198,0.16245898,104860.0,104850.0,0.60237247]
[1737302182995,0.047754,104860.0,104850.0,0.65950283]
[1737302183689,0.21531406,104870.0,104850.0,0.65950283]
[1737302183888,0.047754,104860.0,104850.0,0.65950283]
[1737302184391,0.46096806,104860.0,104850.0,0.24198672]
[1737302184592,0.54146806,104860.0,104850.0,0.24211628]
[1737302184790,0.54146806,104860.0,104850.0,0.24211679]
[1737302184987,0.047756,104850.0,104840.0,0.62868945]
[1737302185295,0.46097006,104850.0,104840.0,0.6424303]
[1737302186089,0.57567504,104850.0,104840.0,0.01374085]
[1737302187491,0.71905627,104850.0,104840.0,0.01374085]
[1737302188999,0.72849712,104850.0,104840.0,0.01374085]
[1737302189392,0.04776,104840.0,104830.0,0.17119389]
[1737302189592,0.46097406,104840.0,104830.0,0.17119389]
[1737302191600,0.52326498,104840.0,104830.0,0.17119389]
[1737302193104,0.52326498,104840.0,104830.0,0.17716834]
[1737302194198,0.52326498,104840.0,104830.0,0.22493334]
[1737302194995,0.52326498,104840.0,104830.0,0.22971289]
[1737302195501,0.52326498,104840.0,104830.0,0.22971288]
[1737302195694,0.52326498,104840.0,104830.0,0.18273305]
[1737302195899,0.16246498,104840.0,104830.0,0.54366317]
[1737302196305,0.11470498,104840.0,104830.0,0.54353305]
[1737302196499,0.16246498,104840.0,104830.0,0.53755861]
[1737302197105,0.04776,104840.0,104830.0,0.54054547]
[1737302197600,0.04776,104840.0,104830.0,0.48813099]
[1737302198007,0.04776,104840.0,104830.0,0.48813096]
[1737302198309,0.04776,104840.0,104830.0,0.54054502]
[1737302198800,0.04776,104840.0,104830.0,1.13409753]
[1737302198996,0.047757,104850.0,104840.0,0.047756]
[1737302199191,0.047757,104850.0,104840.0,0.61363602]
[1737302199400,0.047757,104850.0,104840.0,0.61363572]
[1737302199604,0.047757,104850.0,104840.0,0.56122166]
[1737302199801,0.047757,104850.0,104840.0,0.78487213]
[1737302199997,0.047757,104850.0,104840.0,0.42407213]
[1737302200804,0.047757,104850.0,104840.0,0.37165807]
[1737302201509,0.047757,104850.0,104840.0,0.20042166]
[1737302203807,0.11470498,104860.0,104850.0,0.047756]
[1737302204107,0.11470498,104860.0,104850.0,0.53763572]
[1737302205102,0.16245598,104860.0,104850.0,0.53763572]
[1737302205306,0.11470498,104860.0,104850.0,0.53763572]
[1737302205714,0.16245398,104870.0,104860.0,0.047751]
[1737302206011,0.16245398,104870.0,104860.0,0.12614558]
[1737302206506,0.16245398,104870.0,104860.0,0.19884558]
[1737302207213,0.047749,104870.0,104860.0,0.3702602]
[1737302208220,0.25808621,104880.0,104870.0,0.047747]
[1737302208413,0.25808621,104880.0,104870.0,0.54225564]
[1737302208606,0.25808621,104880.0,104870.0,0.54212552]
[1737302209404,0.25808621,104880.0,104870.0,0.54212386]
[1737302210211,0.11470498,104880.0,104870.0,0.54212386]
[1737302210411,0.04916979,104890.0,104870.0,0.54212386]
[1737302210617,0.04916979,104890.0,104880.0,0.24318562]
[1737302210819,0.04916979,104890.0,104880.0,0.19853436]
[1737302211114,0.04916979,104890.0,104880.0,0.55933436]
[1737302211516,0.04916979,104890.0,104880.0,0.73043165]
[1737302211905,0.00143079,104890.0,104880.0,0.78284571]
[1737302212317,0.00143079,104890.0,104880.0,0.78271615]
[1737302212528,0.00143079,104890.0,104880.0,0.78284506]
[1737302213109,0.00143079,104890.0,104880.0,0.78271539]
[1737302213519,0.00143079,104890.0,104880.0,0.78271544]
[1737302214122,0.00143079,104890.0,104880.0,0.78271548]
[1737302214317,0.00143079,104890.0,104880.0,0.78284501]
[1737302215316,0.04916879,104890.0,104880.0,0.78284501]
[1737302215516,0.04916879,104890.0,104880.0,0.77985947]
[1737302215713,0.04916879,104890.0,104880.0,0.78284495]
[1737302215914,0.04916879,104890.0,104880.0,0.79203489]
[1737302216311,0.04916879,104890.0,104880.0,0.79190554]
[1737302217717,0.04916879,104890.0,104880.0,0.79190562]
[1737302218220,0.04916879,104890.0,104880.0,0.62080833]
[1737302218418,0.04916879,104890.0,104880.0,0.62093762]
[1737302221120,0.00143079,104890.0,104880.0,0.62093762]
[1737302221911,0.00143079,104890.0,104880.0,0.62093749]
[1737302225215,0.00143079,104890.0,104880.0,0.62080805]
[1737302225814,0.00143079,104890.0,104880.0,0.62093759]
[1737302226010,0.00143079,104890.0,104880.0,0.79203488]
[1737302227020,0.00143079,104890.0,104880.0,0.792035]
[1737302228929,0.00143079,104890.0,104880.0,0.79203508]
[1737302229627,0.00143079,104890.0,104880.0,0.71953508]
[1737302230229,0.00143079,104890.0,104880.0,0.71953531]
[1737302230427,0.00143079,104890.0,104880.0,0.35873531]
[1737302231418,0.00143079,104890.0,104880.0,0.71953531]
[1737302231621,0.00143079,104890.0,104880.0,0.35860553]
[1737302233030,0.00143079,104890.0,104880.0,0.71940553]
[1737302234832,0.00143079,104890.0,104880.0,0.71164329]
[1737302235038,0.00143079,104890.0,104880.0,0.54830818]
[1737302235231,0.21470498,104900.0,104890.0,0.047738]
[1737302235423,0.21470498,104900.0,104890.0,0.53521424]
[1737302236432,0.07850931,104900.0,104890.0,0.82098217]
[1737302236937,0.07850931,104900.0,104890.0,0.82098055]
[1737302237431,0.07850931,104900.0,104890.0,1.47665739]
[1737302237639,0.13092337,104900.0,104890.0,1.04935739]
[1737302237831,0.12624231,104900.0,104890.0,1.41015739]
[1737302238038,0.07850931,104900.0,104890.0,1.46257145]
[1737302238431,0.07850931,104900.0,104890.0,1.53457145]
[1737302238732,0.07850931,104900.0,104890.0,0.88363414]
[1737302239043,0.19321429,104900.0,104890.0,0.54071259]
[1737302240031,0.07850931,104900.0,104890.0,0.88363411]
[1737302241841,0.07850931,104900.0,104890.0,1.18163582]
[1737302242438,0.07850931,104900.0,104890.0,1.24893582]
[1737302243345,0.07850931,104900.0,104890.0,1.53463486]
[1737302245740,0.07850931,104900.0,104890.0,1.4822208]
[1737302245945,0.17865637,104900.0,104890.0,0.63919928]
[1737302246142,0.24675637,104900.0,104890.0,0.63919928]
[1737302246443,3.1e-07,104900.0,104890.0,0.69161334]
[1737302246743,3.1e-07,104900.0,104890.0,1.18661334]
[1737302247144,0.11470529,104900.0,104890.0,0.83150159]
[1737302248547,3.1e-07,104900.0,104890.0,1.2988253]
[1737302249041,3.1e-07,104900.0,104890.0,1.29882499]
[1737302249344,3.1e-07,104900.0,104890.0,1.30777909]
[1737302249746,3.1e-07,104900.0,104890.0,1.29882499]
[1737302249948,3.1e-07,104900.0,104890.0,1.5948344]
[1737302251043,3.1e-07,104900.0,104890.0,0.89892169]
[1737302251440,0.16242898,104920.0,104890.0,0.94665969]
[1737302251648,0.16242898,104920.0,104910.0,0.3608]
[1737302251839,0.16242898,104920.0,104910.0,0.42097428]
[1737302252248,0.16242898,104920.0,104910.0,0.46870328]
[1737302252548,0.16242898,104920.0,104910.0,0.868208]
[1737302253235,0.16242898,104920.0,104910.0,1.229008]
[1737302253549,0.11470498,104920.0,104910.0,1.28142206]
[1737302253743,0.11470498,104920.0,104910.0,1.41362206]
[1737302253947,0.14481129,104930.0,104920.0,0.047724]
[1737302254141,0.14481129,104930.0,104920.0,0.53399828]
[1737302254544,0.14338123,104930.0,104920.0,0.53399828]
[1737302255342,0.1344,104940.0,104930.0,0.047719]
[1737302255535,0.1344,104940.0,104930.0,0.46869328]
[1737302256348,0.1344,104940.0,104930.0,0.63969532]
[1737302257541,0.1344,104940.0,104930.0,0.58728126]
[1737302257741,0.1344,104940.0,104930.0,0.41627922]
[1737302260149,0.0636,104940.0,104930.0,0.41627922]
[1737302260349,0.0636,104940.0,104930.0,0.46869328]
[1737302260753,0.0636,104940.0,104930.0,0.41627922]
[1737302261638,0.0636,104940.0,104930.0,0.41627788]
[1737302263043,0.0636,104940.0,104930.0,0.41627797]
[1737302264042,0.0636,104940.0,104930.0,0.58728001]
[1737302264848,0.0636,104940.0,104930.0,0.22648001]
[1737302267050,0.111315,104940.0,104930.0,0.2264802]
[1737302267351,0.61809223,104950.0,104940.0,0.047715]
[1737302267543,0.67050629,104950.0,104940.0,0.05547416]
[1737302269557,0.67050629,104950.0,104940.0,0.05547424]
[1737302271050,0.67050629,104950.0,104940.0,0.05547418]
[1737302272557,0.67050629,104950.0,104940.0,0.05547415]
[1737302273643,0.19109223,104950.0,104940.0,0.05547415]
[1737302274148,0.19109223,104950.0,104940.0,0.10788821]
[1737302274453,0.14338123,104950.0,104940.0,0.53668821]
[1737302275551,0.14338123,104950.0,104940.0,0.58910227]
[1737302275757,0.28756912,104960.0,104950.0,0.04771]
[1737302275758,0.43095035,104960.0,104950.0,0.04771]
[1737302275955,0.43095035,104960.0,104950.0,0.46868321]